fUSD/lending_fUSD_20240514
["ID","MTS","AMOUNT","RATE_DAILY","PERIOD"]
[326997369,1715695846020,-521.43103574,0.00012876,2]
[326997370,1715695846029,-4145.25,0.00012876,2]
[326997371,1715695846039,-4145.25,0.00012876,2]
[326997372,1715695846049,-4145.25,0.00012876,2]
[326997373,1715695846058,-500.0,0.00012876,2]
[326997374,1715695846066,-500.0,0.00012876,2]
[326997375,1715695846075,-503.25,0.00012876,2]
[326997376,1715695846084,-503.25,0.00012876,2]
[326997377,1715695846093,-503.25,0.00012876,2]
[326997378,1715695846102,-500.0,0.00012876,2]
[326997379,1715695846111,-500.0,0.00012876,2]
[326997380,1715695846121,-500.0,0.00012876,2]
[326997381,1715695846131,-500.0,0.00012876,2]
[326997382,1715695846140,-500.0,0.00012876,2]
[326997384,1715695846152,-500.0,0.00012876,2]
[326997386,1715695846162,-500.0,0.00012876,2]
[326997388,1715695846172,-504.98177307,0.00012876,2]
[326997389,1715695846182,-2987.35,0.00012876,2]
[326997392,1715695846191,-2987.35,0.00012876,2]
[326997393,1715695846201,-2987.35,0.00012876,2]
[326997394,1715695846211,-500.0,0.00012876,2]
[326997395,1715695846220,-500.0,0.00012876,2]
[326997396,1715695846229,-500.0,0.00012876,2]
[326997397,1715695846239,-500.0,0.00012876,2]
[326997398,1715695846248,-500.0,0.00012876,2]
[326997399,1715695846258,-184.44474831,0.00012876,2]
[326997400,1715695846311,-315.55525169,0.00012876,2]
[326997401,1715695846321,-162.90125547,0.00012876,2]
[326997402,1715695846333,-337.09874453,0.00012876,2]
[326997403,1715695846343,-198.42369717,0.00012876,2]
[326997404,1715695846356,-301.57630283,0.00012876,2]
[326997405,1715695846365,-4.76240976,0.00012876,2]
[326997406,1715695846377,-495.23759024,0.00012876,2]
[326997407,1715695846387,-816.25,0.00012876,2]
[326997408,1715695846397,-816.25,0.00012876,2]
[326997409,1715695846412,-500.0,0.00012876,2]
[326997410,1715695846422,-490.56240976,0.00012876,2]
[326997411,1715695846442,-325.68759024,0.00012876,2]
[326997412,1715695846452,-500.0,0.00012876,2]
[326997413,1715695846461,-816.25,0.00012876,2]
[326997414,1715695846470,-236.34448976,0.00012876,2]
[326997415,1715695846481,-579.90551024,0.00012876,2]
[326997416,1715695846491,-816.25,0.00012876,2]
[326997417,1715695846500,-103.22379292,0.00012876,2]
[326997418,1715695846511,-426.39400491,0.00012876,2]
[326997419,1715695846769,-286.63220217,0.00012876,2]
[326997420,1715695846780,-500.0,0.00012876,2]
[326997421,1715695846789,-500.0,0.00012876,2]
[326997422,1715695846799,-534.99,0.00012876,2]
[326997423,1715695846809,-500.0,0.00012876,2]
[326997424,1715695846822,-500.0,0.00012876,2]
[326997425,1715695846831,-500.0,0.00012876,2]
[326997426,1715695846841,-500.0,0.00012876,2]
[326997427,1715695846851,-500.0,0.00012876,2]
[326997428,1715695846862,-500.0,0.00012876,2]
[326997429,1715695846872,-500.0,0.00012876,2]
[326997430,1715695846881,-648.06,0.00012876,2]
[326997432,1715695846892,-514.37,0.00012876,2]
[326997433,1715695846907,-514.37,0.00012876,2]
[326997434,1715695846916,-514.37,0.00012876,2]
[326997435,1715695846925,-593.415,0.00012876,2]
[326997436,1715695846935,-500.0,0.00012876,2]
[326997437,1715695846944,-500.0,0.00012876,2]
[326997438,1715695846964,-500.0,0.00012876,2]
[326997439,1715695846973,-500.0,0.00012876,2]
[326997440,1715695846982,-500.0,0.00012876,2]
[326997441,1715695846992,-500.0,0.00012876,2]
[326997442,1715695847002,-500.0,0.00012876,2]
[326997443,1715695847011,-500.0,0.00012876,2]
[326997444,1715695847021,-500.0,0.00012876,2]
[326997445,1715695847031,-500.0,0.00012876,2]
[326997446,1715695847040,-500.0,0.00012876,2]
[326997447,1715695847050,-500.0,0.00012876,2]
[326997448,1715695847060,-500.0,0.00012876,2]
[326997449,1715695847070,-500.0,0.00012876,2]
[326997450,1715695847080,-500.0,0.00012876,2]
[326997451,1715695847090,-500.0,0.00012876,2]
[326997452,1715695847099,-500.0,0.00012876,2]
[326997453,1715695847109,-500.0,0.00012876,2]
[326997454,1715695847118,-500.0,0.00012876,2]
[326997455,1715695847128,-500.0,0.00012876,2]
[326997456,1715695847138,-500.0,0.00012876,2]
[326997457,1715695847148,-500.0,0.00012876,2]
[326997458,1715695847163,-500.0,0.00012876,2]
[326997459,1715695847172,-500.0,0.00012876,2]
[326997460,1715695847182,-500.0,0.00012876,2]
[326997461,1715695847192,-500.0,0.00012876,2]
[326997462,1715695847202,-500.0,0.00012876,2]
[326997463,1715695847212,-500.0,0.00012876,2]
[326997464,1715695847221,-500.0,0.00012876,2]
[326997465,1715695847231,-1331.74,0.00012876,2]
[326997466,1715695847240,-1331.74,0.00012876,2]
[326997467,1715695847250,-1331.74,0.00012876,2]
[326997468,1715695847259,-685.31,0.00012876,2]
[326997469,1715695847269,-685.31,0.00012876,2]
[326997470,1715695847278,-685.31,0.00012876,2]
[326997471,1715695847288,-500.0,0.00012876,2]
[326997472,1715695847298,-500.0,0.00012876,2]
[326997473,1715695847308,-500.0,0.00012876,2]
[326997474,1715695847317,-579.94256492,0.00012876,2]
[326997475,1715695847327,-500.0,0.00012876,2]
[326997476,1715695847336,-1912.13,0.00012876,2]
[326997477,1715695847346,-500.0,0.00012876,2]
[326997478,1715695847356,-157.58630395,0.00012876,2]
[326997479,1715695847366,-1912.13,0.00012876,2]
[326997480,1715695847376,-500.0,0.00012876,2]
[326997481,1715695847385,-1912.13,0.00012876,2]
[326997482,1715695847395,-500.0,0.00012876,2]
[326997483,1715695847408,-500.0,0.00012876,2]
[326997484,1715695847418,-529.99,0.00012876,2]
[326997485,1715695847427,-529.99,0.00012876,2]
[326997486,1715695847436,-529.99,0.00012876,2]
[326997487,1715695847445,-500.0,0.00012876,2]
[326997488,1715695847455,-500.0,0.00012876,2]
[326997489,1715695847464,-500.0,0.00012876,2]
[326997490,1715695847474,-500.0,0.00012876,2]
[326997491,1715695847484,-500.0,0.00012876,2]
[326997492,1715695847494,-284.85766041,0.00012876,2]
[326997493,1715695847504,-500.0,0.00012876,2]
[326997494,1715695847513,-500.0,0.00012876,2]
[326997495,1715695847522,-500.0,0.00012876,2]
[326997496,1715695847531,-500.0,0.00012876,2]
[326997497,1715695847541,-500.0,0.00012876,2]
[326997498,1715695847550,-1352.38,0.00012876,2]
[326997499,1715695847559,-1352.38,0.00012876,2]
[326997500,1715695847569,-1352.38,0.00012876,2]
[326997501,1715695847578,-1313.04,0.00012876,2]
[326997502,1715695847588,-1313.04,0.00012876,2]
[326997503,1715695847597,-1313.04,0.00012876,2]
[326997504,1715695847607,-500.0,0.00012876,2]
[326997505,1715695847617,-500.0,0.00012876,2]
[326997506,1715695847626,-500.0,0.00012876,2]
[326997507,1715695847636,-1131.55,0.00012876,2]
[326997508,1715695847646,-1131.55,0.00012876,2]
[326997509,1715695847661,-1131.55,0.00012876,2]
[326997510,1715695847670,-500.0,0.00012876,2]
[326997511,1715695847679,-500.0,0.00012876,2]
[326997512,1715695847688,-500.0,0.00012876,2]
[326997513,1715695847698,-500.0,0.00012876,2]
[326997514,1715695847708,-500.0,0.00012876,2]
[326997515,1715695847718,-500.0,0.00012876,2]
[326997516,1715695847728,-500.0,0.00012876,2]
[326997517,1715695847737,-1614.98626856,0.00012876,2]
[326997518,1715695847979,-225.30373144,0.00012876,2]
[326997519,1715695847989,-1840.29,0.00012876,2]
[326997520,1715695847998,-500.0,0.00012876,2]
[326997521,1715695848008,-500.0,0.00012876,2]
[326997522,1715695848018,-431.57550673,0.00012876,2]
[326997523,1715695848030,-68.42449327,0.00012876,2]
[326997524,1715695848039,-633.24,0.00012876,2]
[326997525,1715695848049,-633.24,0.00012876,2]
[326997526,1715695848059,-500.0,0.00012876,2]
[326997527,1715695848068,-633.24,0.00012876,2]
[326997528,1715695848078,-239.7891054,0.00012876,2]
[326997529,1715695848089,-260.2108946,0.00012876,2]
[326997530,1715695848098,-500.0,0.00012876,2]
[326997531,1715695848108,-500.0,0.00012876,2]
[326997532,1715695848117,-500.0,0.00012876,2]
[326997533,1715695848125,-500.0,0.00012876,2]
[326997534,1715695848135,-500.0,0.00012876,2]
[326997535,1715695848144,-500.0,0.00012876,2]
[326997536,1715695848155,-500.0,0.00012876,2]
[326997537,1715695848164,-500.0,0.00012876,2]
[326997538,1715695848175,-500.0,0.00012876,2]
[326997539,1715695848184,-500.0,0.00012876,2]
[326997540,1715695848195,-207.96587779,0.00012876,2]
[326997541,1715695848203,-876.28,0.00012876,2]
[326997542,1715695848213,-500.0,0.00012876,2]
[326997543,1715695848222,-876.28,0.00012876,2]
[326997544,1715695848231,-500.0,0.00012876,2]
[326997545,1715695848241,-876.28,0.00012876,2]
[326997546,1715695848250,-500.0,0.00012876,2]
[326997547,1715695848259,-517.61076182,0.00012876,2]
[326997548,1715695848269,-569.19,0.00012876,2]
[326997549,1715695848278,-569.19,0.00012876,2]
[326997550,1715695848287,-569.19,0.00012876,2]
[326997551,1715695848298,-500.0,0.00012876,2]
[326997552,1715695848307,-500.0,0.00012876,2]
[326997553,1715695848317,-500.0,0.00012876,2]
[326997554,1715695848326,-500.0,0.00012876,2]
[326997555,1715695848335,-500.0,0.00012876,2]
[326997556,1715695848344,-500.0,0.00012876,2]
[326997557,1715695848354,-500.0,0.00012876,2]
[326997558,1715695848363,-503.75767823,0.00012876,2]
[326997559,1715695848373,-500.0,0.00012876,2]
[326997560,1715695848382,-1326.15,0.00012876,2]
[326997561,1715695848392,-500.0,0.00012876,2]
[326997562,1715695848402,-1326.15,0.00012876,2]
[326997563,1715695848412,-1326.15,0.00012876,2]
[326997564,1715695848421,-310.4568392,0.00012876,2]
[326997565,1715695848432,-500.0,0.00012876,2]
[326997566,1715695848441,-500.0,0.00012876,2]
[326997567,1715695848450,-500.0,0.00012876,2]
[326997568,1715695848460,-500.0,0.00012876,2]
[326997569,1715695848469,-500.0,0.00012876,2]
[326997570,1715695848478,-500.0,0.00012876,2]
[326997571,1715695848488,-343.95462076,0.00012876,2]
[326997572,1715695848500,-156.04537924,0.00012876,2]
[326997573,1715695848509,-500.0,0.00012876,2]
[326997574,1715695848519,-56.49911174,0.00012876,2]
[326997575,1715695848545,-443.50088826,0.00012876,2]
[326997576,1715695848554,-598.85334138,0.00012876,2]
[326997577,1715695848563,-250.35722036,0.00012876,2]
[326997578,1715695848574,-337.32277964,0.00012876,2]
[326997579,1715695848584,-500.0,0.00012876,2]
[326997580,1715695848594,-500.0,0.00012876,2]
[326997581,1715695848603,-500.0,0.00012876,2]
[326997582,1715695848612,-500.0,0.00012876,2]
[326997583,1715695848622,-587.68,0.00012876,2]
[326997584,1715695848631,-500.0,0.00012876,2]
[326997585,1715695848640,-587.68,0.00012876,2]
[326997586,1715695848652,-500.0,0.00012876,2]
[326997587,1715695848662,-500.0,0.00012876,2]
[326997588,1715695848671,-500.0,0.00012876,2]
[326997589,1715695848680,-500.0,0.00012876,2]
[326997590,1715695848690,-500.0,0.00012876,2]
[326997591,1715695848699,-628.36635899,0.00012876,2]
[326997592,1715695848709,-1314.06,0.00012876,2]
[326997593,1715695848717,-1314.06,0.00012876,2]
[326997594,1715695848727,-1314.06,0.00012876,2]
[326997595,1715695848736,-500.0,0.00012876,2]
[326997596,1715695848746,-500.0,0.00012876,2]
[326997597,1715695848755,-500.0,0.00012876,2]
[326997598,1715695848766,-500.0,0.00012876,2]
[326997599,1715695848775,-500.0,0.00012876,2]
[326997600,1715695848784,-500.0,0.00012876,2]
[326997601,1715695848794,-500.0,0.00012876,2]
[326997602,1715695848804,-559.59,0.00012876,2]
[326997603,1715695848814,-548.69,0.00012876,2]
[326997604,1715695848823,-500.0,0.00012876,2]
[326997605,1715695848832,-1348.9,0.00012876,2]
[326997606,1715695848845,-500.0,0.00012876,2]
[326997607,1715695848854,-500.0,0.00012876,2]
[326997608,1715695848866,-500.0,0.00012876,2]
[326997609,1715695848875,-500.0,0.00012876,2]
[326997610,1715695848884,-239.96839634,0.00012876,2]
[326997611,1715695848894,-500.0,0.00012876,2]
[326997612,1715695848907,-500.0,0.00012876,2]
[326997613,1715695848916,-1348.9,0.00012876,2]
[326997614,1715695848925,-630.21,0.00012876,2]
[326997615,1715695848935,-1348.9,0.00012876,2]
[326997616,1715695848944,-500.0,0.00012876,2]
[326997617,1715695849172,-500.0,0.00012876,2]
[326997618,1715695849183,-500.0,0.00012876,2]
[326997619,1715695849193,-500.0,0.00012876,2]
[326997620,1715695849202,-500.0,0.00012876,2]
[326997621,1715695849212,-500.0,0.00012876,2]
[326997622,1715695849221,-500.0,0.00012876,2]
[326997623,1715695849231,-574.44,0.00012876,2]
[326997624,1715695849240,-1113.91,0.00012876,2]
[326997625,1715695849250,-574.44,0.00012876,2]
[326997626,1715695849259,-1113.91,0.00012876,2]
[326997627,1715695849269,-574.44,0.00012876,2]
[326997628,1715695849279,-1113.91,0.00012876,2]
[326997629,1715695849290,-500.0,0.00012876,2]
[326997630,1715695849300,-500.0,0.00012876,2]
[326997631,1715695849310,-500.0,0.00012876,2]
[326997632,1715695849319,-500.0,0.00012876,2]
[326997633,1715695849329,-500.0,0.00012876,2]
[326997634,1715695849338,-703.48,0.00012876,2]
[326997635,1715695849348,-703.48,0.00012876,2]
[326997636,1715695849357,-703.48,0.00012876,2]
[326997637,1715695849366,-500.0,0.00012876,2]
[326997638,1715695849375,-500.0,0.00012876,2]
[326997639,1715695849386,-500.0,0.00012876,2]
[326997640,1715695849395,-500.0,0.00012876,2]
[326997641,1715695849405,-500.0,0.00012876,2]
[326997642,1715695849415,-500.0,0.00012876,2]
[326997643,1715695849425,-708.56,0.00012876,2]
[326997644,1715695849434,-708.56,0.00012876,2]
[326997645,1715695849443,-200.0,0.00012876,2]
[326997646,1715695849452,-708.56,0.00012876,2]
[326997647,1715695849462,-500.0,0.00012876,2]
[326997648,1715695849471,-500.0,0.00012876,2]
[326997649,1715695849481,-500.0,0.00012876,2]
[326997650,1715695849490,-500.0,0.00012876,2]
[326997651,1715695849499,-500.0,0.00012876,2]
[326997652,1715695849508,-3892.77,0.00012876,2]
[326997653,1715695849517,-3892.77,0.00012876,2]
[326997654,1715695849527,-3892.77,0.00012876,2]
[326997655,1715695849535,-500.0,0.00012876,2]
[326997656,1715695849545,-500.0,0.00012876,2]
[326997657,1715695849554,-500.0,0.00012876,2]
[326997658,1715695849564,-946.11,0.00012876,2]
[326997659,1715695849573,-946.11,0.00012876,2]
[326997660,1715695849583,-946.11,0.00012876,2]
[326997661,1715695849592,-946.11,0.00012876,2]
[326997662,1715695849601,-946.11,0.00012876,2]
[326997663,1715695849611,-946.11,0.00012876,2]
[326997664,1715695849620,-946.11,0.00012876,2]
[326997665,1715695849629,-946.11,0.00012876,2]
[326997666,1715695849639,-500.0,0.00012876,2]
[326997667,1715695849648,-500.0,0.00012876,2]
[326997668,1715695849660,-500.0,0.00012876,2]
[326997669,1715695849670,-500.0,0.00012876,2]
[326997670,1715695849680,-500.0,0.00012876,2]
[326997671,1715695849690,-500.0,0.00012876,2]
[326997672,1715695849699,-500.0,0.00012876,2]
[326997673,1715695849708,-500.0,0.00012876,2]
[326997674,1715695849718,-500.0,0.00012876,2]
[326997675,1715695849728,-500.0,0.00012876,2]
[326997676,1715695849737,-500.0,0.00012876,2]
[326997677,1715695849747,-500.0,0.00012876,2]
[326997678,1715695849757,-500.0,0.00012876,2]
[326997679,1715695849766,-500.0,0.00012876,2]
[326997680,1715695849776,-500.0,0.00012876,2]
[326997681,1715695849785,-500.0,0.00012876,2]
[326997682,1715695849794,-500.0,0.00012876,2]
[326997683,1715695849804,-500.0,0.00012876,2]
[326997684,1715695849816,-500.0,0.00012876,2]
[326997685,1715695849826,-500.0,0.00012876,2]
[326997686,1715695849835,-500.0,0.00012876,2]
[326997687,1715695849845,-500.0,0.00012876,2]
[326997688,1715695849855,-500.0,0.00012876,2]
[326997689,1715695849865,-500.0,0.00012876,2]
[326997690,1715695849874,-500.0,0.00012876,2]
[326997691,1715695849884,-500.0,0.00012876,2]
[326997692,1715695849894,-187.16,0.00012876,2]
[326997693,1715695849906,-500.0,0.00012876,2]
[326997694,1715695849916,-156.02869599,0.00012889,2]
[326997695,1715695849926,-1570.87093419,0.0001289,2]
[326997696,1715695849935,-1570.87093419,0.00012891,2]
[326997697,1715695849944,-1570.87093419,0.00012892,2]
[326997698,1715695849954,-1570.87093419,0.00012893,2]
[326997699,1715695849963,-1000.0,0.00012893,2]
[326997700,1715695849973,-1129.15061526,0.00012894,2]
[326997701,1715695849987,-441.72031893,0.00012894,2]
[326997702,1715695849996,-1000.0,0.00012894,2]
[326997703,1715695850007,-500.0,0.00012894,2]
[326997704,1715695850016,-1570.87093419,0.00012895,2]
[326997705,1715695850026,-1570.87093419,0.00012895,2]
[326997706,1715695850035,-1570.87093419,0.00012896,2]
[326997707,1715695850044,-500.0,0.00012897,2]
[326997708,1715695850054,-1570.87093419,0.00012897,2]
[326997709,1715695850063,-514.37,0.00012898,2]
[326997710,1715695850073,-500.0,0.00012898,2]
[326997711,1715695850083,-500.0,0.00012898,2]
[326997712,1715695850093,-500.0,0.00012898,2]
[326997713,1715695850102,-500.0,0.00012898,2]
[326997714,1715695850112,-685.31,0.00012898,2]
[326997715,1715695850121,-500.0,0.00012898,2]
[326997716,1715695850130,-1131.55,0.00012898,2]
[326997717,1715695850139,-500.0,0.00012898,2]
[326997718,1715695850148,-500.0,0.00012898,2]
[326997719,1715695850161,-876.28,0.00012898,2]
[326997720,1715695850170,-569.19,0.00012898,2]
[326997721,1715695850180,-1326.15,0.00012898,2]
[326997722,1715695850190,-500.0,0.00012898,2]
[326997723,1715695850199,-1314.06,0.00012898,2]
[326997724,1715695850209,-574.44,0.00012898,2]
[326997725,1715695850218,-1113.91,0.00012898,2]
[326997726,1715695850228,-3892.77,0.00012898,2]
[326997727,1715695850237,-500.0,0.00012898,2]
[326997728,1715695850248,-500.0,0.00012898,2]
[326997729,1715695850258,-164.28031946,0.00012898,2]
[326997730,1715695850268,-1570.87093419,0.00012898,2]
[326997731,1715695850277,-164.28031946,0.00012899,2]
[326997732,1715695850286,-1570.87093419,0.00012899,2]
[326997733,1715695850295,-1570.87093419,0.000129,2]
[326997734,1715695850305,-150.0,0.000129,2]
[326997735,1715695850315,-226.09,0.000129,2]
[326997736,1715695850324,-150.0,0.000129,2]
[326997737,1715695850334,-500.0,0.0001292,2]
[326997738,1715695850343,-500.0,0.00012929,2]
[326997739,1715695850353,-500.0,0.00012937,2]
[326997740,1715695850362,-500.0,0.00012946,2]
[326997741,1715695850372,-500.0,0.00012955,2]
[326997742,1715695850382,-500.0,0.00012964,2]
[326997743,1715695850391,-500.0,0.00012973,2]
[326997744,1715695850403,-176.02769,0.00012976,2]
[326997745,1715695850412,-159.040668,0.00012976,2]
[326997746,1715695850422,-159.048788,0.00012976,2]
[326997747,1715695850431,-241.404642,0.00012976,2]
[326997748,1715695850440,-500.0,0.00012981,2]
[326997749,1715695850450,-500.0,0.00012986,2]
[326997750,1715695850463,-711.16,0.00012986,2]
[326997751,1715695850473,-500.0,0.00012986,2]
[326997752,1715695850483,-500.0,0.00012986,2]
[326997753,1715695850493,-500.0,0.00012986,2]
[326997754,1715695850502,-5891.48981285,0.00012986,2]
[326997755,1715695850826,-164.28031946,0.000129,2]
[326997756,1715695850838,-1390.72313054,0.00012986,2]
[326997757,1715695850849,-561.9947194,0.00012986,2]
[326997758,1715695850862,-354.48233721,0.00012986,2]
[326997759,1715695850872,-463.5560925,0.00012986,2]
[326997760,1715695850959,-594.62898012,0.00012875,2]
[326997761,1715695850971,-187.6312721,0.00012875,2]
[326997762,1715695850980,-187.4139075,0.00012986,2]
[326997763,1715695850991,-425.6048204,0.00012986,2]
[326997764,1715695851004,-74.3951796,0.00012986,2]
[326997765,1715695851013,-548.5516204,0.00012986,2]
[326997766,1715695851037,-0.00417445,0.00012986,2]
[326997767,1715695851188,-12.38420515,0.00012986,2]
[326997768,1715695851198,-281.38979485,0.00012986,2]
[326997769,1715695851209,-218.61020515,0.00012986,2]
[326997770,1715695851218,-500.0,0.00012986,2]
[326997771,1715695851228,-26.94579483,0.00012986,2]
[326997772,1715695851239,-394.58101345,0.00012986,2]
[326997773,1715695851250,-119.13319172,0.00012986,2]
[326997774,1715695851260,-500.0,0.00012986,2]
[326997775,1715695851270,-500.0,0.00012986,2]
[326997776,1715695851279,-500.0,0.00012986,2]
[326997777,1715695851288,-500.0,0.00012986,2]
[326997778,1715695851298,-503.25,0.00012986,2]
[326997779,1715695851307,-500.0,0.00012986,2]
[326997780,1715695851316,-500.0,0.00012986,2]
[326997781,1715695851326,-500.0,0.00012986,2]
[326997782,1715695851337,-322.85421767,0.00012986,2]
[326997783,1715695851349,-2664.49578233,0.00012986,2]
[326997784,1715695851359,-500.0,0.00012986,2]
[326997785,1715695851367,-500.0,0.00012986,2]
[326997786,1715695851377,-500.0,0.00012986,2]
[326997787,1715695851387,-500.0,0.00012986,2]
[326997788,1715695851396,-500.0,0.00012986,2]
[326997789,1715695851407,-500.0,0.00012986,2]
[326997790,1715695851416,-500.0,0.00012986,2]
[326997791,1715695851425,-468.7,0.00012986,2]
[326997792,1715695851434,-647.25,0.00012986,2]
[326997793,1715695851443,-529.99,0.00012986,2]
[326997794,1715695851452,-500.0,0.00012986,2]
[326997795,1715695851462,-1313.04,0.00012986,2]
[326997796,1715695851471,-512.27,0.00012986,2]
[326997797,1715695851480,-1840.29,0.00012986,2]
[326997798,1715695851489,-600.12,0.00012986,2]
[326997799,1715695851498,-500.0,0.00012986,2]
[326997800,1715695851507,-588.16,0.00012986,2]
[326997801,1715695851517,-500.0,0.00012986,2]
[326997802,1715695851526,-500.0,0.00012986,2]
[326997803,1715695851535,-500.0,0.00012986,2]
[326997804,1715695851544,-587.68,0.00012986,2]
[326997805,1715695851553,-500.0,0.00012986,2]
[326997806,1715695851562,-1348.9,0.00012986,2]
[326997807,1715695851572,-500.0,0.00012986,2]
[326997808,1715695851580,-500.0,0.00012986,2]
[326997809,1715695851589,-500.0,0.00012986,2]
[326997810,1715695851598,-703.48,0.00012986,2]
[326997811,1715695851607,-708.56,0.00012986,2]
[326997812,1715695851616,-500.0,0.00012986,2]
[326997813,1715695851626,-500.0,0.00012986,2]
[326997814,1715695851635,-500.0,0.00012986,2]
[326997815,1715695851644,-741.75,0.00012987,2]
[326997816,1715695851656,-500.0,0.00012987,2]
[326997817,1715695851666,-713.91,0.00012987,2]
[326997818,1715695851675,-508.39,0.00012987,2]
[326997819,1715695851684,-869.29,0.00012987,2]
[326997820,1715695851693,-1004.84,0.00012987,2]
[326997821,1715695851702,-816.25,0.00012987,2]
[326997822,1715695851711,-151.0,0.00012987,2]
[326997823,1715695851720,-151.0,0.00012987,2]
[326997824,1715695851731,-151.0,0.00012987,2]
[326997825,1715695851740,-151.0,0.00012987,2]
[326997826,1715695851749,-151.0,0.00012987,2]
[326997827,1715695851758,-151.0,0.00012987,2]
[326997828,1715695851768,-151.0,0.00012987,2]
[326997829,1715695851777,-500.0,0.00012988,2]
[326997830,1715695851786,-500.0,0.00012988,2]
[326997831,1715695851796,-826.21,0.00012988,2]
[326997832,1715695851806,-255.78,0.00012988,2]
[326997833,1715695851817,-500.0,0.00012988,2]
[326997834,1715695851826,-424.89,0.00012988,2]
[326997835,1715695851839,-500.0,0.00012988,2]
[326997836,1715695851848,-500.0,0.00012988,2]
[326997837,1715695851858,-468.93,0.00012988,2]
[326997838,1715695851868,-500.0,0.00012988,2]
[326997839,1715695851877,-500.0,0.00012988,2]
[326997840,1715695851886,-500.0,0.00012988,2]
[326997841,1715695851895,-500.0,0.00012988,2]
[326997842,1715695851908,-500.0,0.00012988,2]
[326997843,1715695851917,-500.0,0.00012988,2]
[326997844,1715695851927,-391.3,0.00012988,2]
[326997845,1715695851935,-500.0,0.00012988,2]
[326997846,1715695851944,-500.0,0.00012988,2]
[326997847,1715695851954,-500.0,0.00012988,2]
[326997848,1715695851963,-500.0,0.00012988,2]
[326997849,1715695851972,-500.0,0.00012988,2]
[326997850,1715695851982,-500.0,0.00012988,2]
[326997851,1715695851991,-500.0,0.00012988,2]
[326997852,1715695852001,-500.0,0.00012988,2]
[326997853,1715695852010,-500.0,0.00012988,2]
[326997854,1715695852019,-1619.79,0.00012988,2]
[326997855,1715695852029,-500.0,0.00012988,2]
[326997856,1715695852040,-500.0,0.00012988,2]
[326997857,1715695852049,-500.0,0.00012988,2]
[326997858,1715695852059,-500.0,0.00012988,2]
[326997859,1715695852069,-500.0,0.00012988,2]
[326997860,1715695852079,-500.0,0.00012988,2]
[326997861,1715695852089,-500.0,0.00012988,2]
[326997862,1715695852099,-500.0,0.00012988,2]
[326997863,1715695852108,-181.41,0.00012988,2]
[326997864,1715695852118,-500.0,0.00012988,2]
[326997865,1715695852128,-500.0,0.00012988,2]
[326997866,1715695852138,-1347.21,0.00012988,2]
[326997867,1715695852147,-555.8,0.00012988,2]
[326997868,1715695852160,-400.76,0.00012988,2]
[326997869,1715695852169,-199.967211,0.00012988,2]
[326997870,1715695852179,-500.0,0.00012988,2]
[326997871,1715695852187,-444.54767701,0.00012988,2]
[326997872,1715695852197,-500.0,0.00012988,2]
[326997873,1715695852207,-609.45,0.00012988,2]
[326997874,1715695852216,-500.0,0.00012988,2]